Cogmind - Beta 9.3 @@@ ROGUE MODE // 2019.12.25 @ 07:44:54 // Winter2019/RPGLIKE Player: Stryker Result: Destroyed by B-74 Champion with Powered Hammer Performance ------------- Evolutions (8) 4000 Regions Visited (33) 6600 Robots Destroyed (421) 2105 Value Destroyed (17735) 17735 Prototype IDs (89) 1780 Alien Tech Used (1) 200 Bonus (13652) 13652 TOTAL SCORE: 46072 Bonus ------- Triggered Max Security 1000 High Alert Combat Kills 3619 Follower Combat Kills 2745 Network Hubs Disabled 200 Aligned with FarCom 300 Met Data Miner 300 Met Imprinter 300 Destroyed Z-Imprinter 1000 Triggered Deep Caves Wall 1000 Exposed GOLEM Chamber 1500 Met Warlord at Base 500 MAIN.C Attacked Warlord 500 Warlord Defense Kill 1134 A7 Reached Mainframe 300 Met R17 at Cetus 500 Friendly Fire -1246 Cogmind --------- Core Integrity 0/1300 Matter 400/400 Energy 125/1300 System Corruption 0% Temperature Cool (0) Movement Treading (180) Ox1 Location -2/Testing Parts ------- > --- POWER (2) -------- Assembled Flux Generator > --- PROPULSION (4) --- Centrium Heavy Treads Armored Huge Wheel > --- UTILITY (13) ----- Assembled Biocell Array Assembled Suspension Frame Assembled Combat Suite Experimental Target Analyzer Advanced Armor Integrity Analyzer Centrium Medium Armor Plating Damper Plating Advanced Focal Shield Advanced Thermal Shield Advanced Remote Shield System Purifier > --- WEAPON (5) ------- Assembled Focal Cannon Assembled Focal Cannon Hypervelocity Gauss Rifle Improved KE Penetrator Improved KE Penetrator > --- INVENTORY (5) ---- Long-range Terrain Scanner Antimissile System Compact Linear Accelerator Plasma Lance Peak State ------------ > --- POWER ------------ Assembled Flux Generator > --- PROPULSION ------- Centrium Heavy Treads Armored Huge Wheel > --- UTILITY ---------- Assembled Nanovents Assembled Nanovents Assembled Nanovents Assembled Biocell Array Assembled Suspension Frame Assembled Combat Suite Experimental Target Analyzer Advanced Armor Integrity Analyzer Centrium Medium Armor Plating Assembled Alloy Armor GOLEM Unit > --- WEAPON ----------- Assembled Focal Cannon Assembled Focal Cannon Hypervelocity Gauss Rifle Improved KE Penetrator Improved KE Penetrator > --- INVENTORY -------- Protomatter Long-range Terrain Scanner System Purifier Zionite Laser-M Phasing Sabre [Rating: 188] Favorites ----------- Power Improved Deuterium Engine Engine Improved Deuterium Engine Reactor Assembled Flux Generator Propulsion Armored Huge Wheel Treads Armored Treads Leg Assembled Alloy Leg Wheel Armored Huge Wheel Utility Damper Plating Device Advanced Focal Shield Storage Assembled Biocell Array Processor Experimental Target Analyzer Protection Damper Plating Weapon Hypervelocity Gauss Rifle Energy Gun Cooled Pulse Rifle Energy Cannon Assembled Focal Cannon Ballistic Gun Hypervelocity Gauss Rifle Ballistic Cannon Gauss Cannon Slashing Weapon Power Sword Piercing Weapon Plasma Lance Build | -11 -10 -9 -9 -9 -8 -8 -8 -7 -7 -7 -7 -7 -7 -6 -6 -6 -6 -6 -6 -5 -5 -5 -5 -5 -4 -4 -4 -4 -4 -4 -3 -2 -2 ------- Run | Scr Mat Mat Min Exi Min Mat Sto Fac Was Fac Low Low Dat Pro Fac Low Low Zio Dee Pro Fac Upp Upp War Pro Fac Ext Cet Arc Hub Res Res Tes Slots Evolved 19 | 3 1 1 1 . 1 1 . . 2 3 . . . 1 1 . . . . . . . . . 1 1 . 1 . . . 1 . Power 1 | . . . . . . . . . . 1 . . . . . . . . . . . . . . . . . . . . . . . Propulsion 3 | 1 . . . . . . . . . 1 . . . . . . . . . . . . . . . 1 . . . . . . . Utility 11 | 1 . . 1 . . 1 . . 2 1 . . . 1 1 . . . . . . . . . 1 . . 1 . . . 1 . Weapon 4 | 1 1 1 . . 1 . . . . . . . . . . . . . . . . . . . . . . . . . . . . Parts Attached 219 | 4 5 3 2 1 1 2 14 5 4 20 . 7 . 4 19 . 4 1 13 2 5 7 9 5 6 20 10 10 1 3 20 7 5 Power 11 | . 1 1 . . . . . . . 5 . 1 . . 1 . . . 1 . . . 1 . . . . . . . . . . Engine 9 | . 1 1 . . . . . . . 5 . 1 . . 1 . . . . . . . . . . . . . . . . . . Core . | . . . . . . . . . . . . . . . . . . . . . . . . . . . . . . . . . . Reactor 2 | . . . . . . . . . . . . . . . . . . . 1 . . . 1 . . . . . . . . . . Propulsion 9 | 2 1 . . . . . 1 1 . 1 . . . . . . . . . . . . 1 . . 1 . 1 . . . . . Treads 5 | 1 . . . . . . 1 . . . . . . . . . . . . . . . 1 . . 1 . 1 . . . . . Leg . | . . . . . . . . . . . . . . . . . . . . . . . . . . . . . . . . . . Wheel 4 | 1 1 . . . . . . 1 . 1 . . . . . . . . . . . . . . . . . . . . . . . Hover . | . . . . . . . . . . . . . . . . . . . . . . . . . . . . . . . . . . Flight . | . . . . . . . . . . . . . . . . . . . . . . . . . . . . . . . . . . Utility 110 | 1 2 . 1 . . 2 2 . 4 4 . 2 . 3 8 . 2 1 9 1 1 5 3 5 5 13 7 6 . 1 16 3 3 Device 93 | . 2 . 1 . . 1 1 . 2 4 . 2 . 3 5 . 2 1 7 1 1 5 3 4 4 13 7 4 . 1 13 3 3 Storage . | . . . . . . . . . . . . . . . . . . . . . . . . . . . . . . . . . . Processor 6 | 1 . . . . . . . . . . . . . . 2 . . . . . . . . 1 1 . . . . . 1 . . Hackware . | . . . . . . . . . . . . . . . . . . . . . . . . . . . . . . . . . . Protection 11 | . . . . . . 1 1 . 2 . . . . . 1 . . . 2 . . . . . . . . 2 . . 2 . . Artifact . | . . . . . . . . . . . . . . . . . . . . . . . . . . . . . . . . . . Weapon 89 | 1 1 2 1 1 1 . 11 4 . 10 . 4 . 1 10 . 2 . 3 1 4 2 4 . 1 6 3 3 1 2 4 4 2 Energy Gun 24 | 1 1 2 . . 1 . 3 1 . 5 . 1 . . 2 . . . 1 . 1 1 1 . . 1 2 . . . . . . Energy Cannon 3 | . . . . 1 . . 1 1 . . . . . . . . . . . . . . . . . . . . . . . . . Ballistic Gun 28 | . . . 1 . . . 2 2 . 1 . 1 . . 5 . 1 . 1 . 2 . . . 1 2 . 2 1 1 2 2 1 Ballistic Cannon 4 | . . . . . . . 1 . . 2 . . . . . . . . . . . . . . . . . . . . . 1 . Launcher . | . . . . . . . . . . . . . . . . . . . . . . . . . . . . . . . . . . Special Weapon . | . . . . . . . . . . . . . . . . . . . . . . . . . . . . . . . . . . Impact Weapon . | . . . . . . . . . . . . . . . . . . . . . . . . . . . . . . . . . . Slashing Weapon 27 | . . . . . . . 4 . . 2 . 2 . 1 3 . 1 . 1 1 1 1 2 . . 3 1 1 . 1 2 . . Piercing Weapon 3 | . . . . . . . . . . . . . . . . . . . . . . . 1 . . . . . . . . 1 1 Special Melee Weapon . | . . . . . . . . . . . . . . . . . . . . . . . . . . . . . . . . . . Unidentified Prototypes 24 | . . 1 . . . . 2 1 . 1 . . . . 2 . . . 6 . 1 1 . 3 . . . 3 . . 1 2 . Parts Lost . | . . . . . . . . . . . . . . . . . . . . . . . . . . . . . . . . . . Power . | . . . . . . . . . . . . . . . . . . . . . . . . . . . . . . . . . . Propulsion . | . . . . . . . . . . . . . . . . . . . . . . . . . . . . . . . . . . Utility . | . . . . . . . . . . . . . . . . . . . . . . . . . . . . . . . . . . Weapon . | . . . . . . . . . . . . . . . . . . . . . . . . . . . . . . . . . . Highest Loss Streak . | . . . . . . . . . . . . . . . . . . . . . . . . . . . . . . . . . . Average Slot Usage (%) 82 | . 93 99 96 100 100 100 99 100 89 84 82 81 82 83 83 84 84 84 81 78 77 78 79 77 75 73 72 72 73 73 76 78 79 Engine 5 | . 12 11 10 10 9 8 8 8 7 10 11 11 11 11 10 10 10 10 6 5 5 5 5 2 . . . . . . . . . Reactor 2 | . . . . . . . . . . . . . . . . . . . 3 5 5 5 4 5 4 4 4 4 4 4 4 4 4 Treads 5 | . 12 11 10 10 9 8 8 8 7 5 5 5 5 5 5 5 5 5 5 5 5 5 5 5 4 4 4 4 4 4 4 4 4 Wheel 5 | . 12 11 10 10 9 8 8 8 7 5 5 5 5 5 5 5 5 5 5 5 5 5 5 5 4 4 4 4 4 4 4 4 4 Device 24 | . 10 22 23 30 27 26 25 25 22 23 23 23 23 27 30 31 31 31 28 26 26 25 25 22 19 18 18 17 17 17 19 23 25 Storage 1 | . . . . . . . . . . . . . . . . . . . . . . 1 5 5 4 4 4 4 4 4 4 4 4 Processor 2 | . 9 . . . . . . . . . . . . . . . . . . . . . . 2 5 9 9 8 8 8 8 8 8 Protection 4 | . . . . . . 6 7 8 7 5 5 5 5 5 5 5 5 5 5 5 5 5 5 5 4 4 4 7 8 8 7 8 8 Energy Gun 10 | . 20 32 31 27 25 25 21 18 7 9 23 21 23 22 11 10 10 10 9 5 4 3 2 5 2 . 2 . . . . . . Energy Cannon 5 | . . . . 2 9 8 7 10 14 7 . . . . . . . . . 5 5 10 10 10 9 9 9 8 8 8 8 8 8 Ballistic Gun 10 | . 12 11 10 10 9 8 7 11 14 8 . 2 5 . 11 15 13 15 13 12 9 10 10 10 12 10 9 11 13 11 10 11 11 Slashing Weapon 1 | . . . . . . . 3 . . 5 5 2 . 4 2 . 1 . 1 2 4 1 2 . . 2 1 . . . 1 . . Naked Turns . | . . . . . . . . . . . . . . . . . . . . . . . . . . . . . . . . . . Heaviest Build 163 | 7 14 20 23 30 33 38 38 41 86 101 92 96 93 98 108 108 108 111 111 111 121 124 125 153 150 150 150 158 158 158 161 163 163 Greatest Support 115 | 10 16 16 16 16 16 16 16 16 22 38 38 38 38 38 38 38 38 38 38 38 38 48 48 53 53 100 100 105 105 105 63 115 63 Greatest Overweight (x) 4 | . . 1 1 1 2 2 2 3 3 4 2 2 2 2 2 2 2 2 2 2 3 3 2 3 2 2 2 1 1 2 2 2 2 Average Overweight (x) 1 | . . . 1 1 1 2 1 2 2 3 2 2 2 2 2 2 2 2 2 2 2 2 2 2 2 1 1 1 1 1 1 1 2 Largest Inventory Capacity 5 | . . 1 1 1 1 2 2 2 2 2 2 2 2 2 3 3 3 3 4 4 4 4 4 5 5 5 5 5 5 5 5 5 5 Average Capacity 3 | . . . 1 1 1 1 2 2 2 2 2 2 2 2 2 3 3 3 3 4 4 4 4 4 5 5 5 5 5 5 5 5 5 Most Carried 5 | . . 1 1 1 1 2 2 2 2 2 2 2 2 2 3 3 3 3 4 4 4 4 4 5 5 5 5 5 5 5 5 5 5 Average Carried 3 | . . . . 1 1 1 1 2 2 1 2 1 2 1 2 3 3 3 3 4 3 3 4 4 5 5 5 4 5 5 5 4 4 Final Capacity 5 | . . 1 1 1 1 2 2 2 2 2 2 2 2 2 3 3 3 3 4 4 4 4 4 5 5 5 5 5 5 5 5 5 5 Final Carried 5 | . . 1 1 1 1 2 2 2 2 2 2 2 2 1 3 3 3 3 4 4 4 4 4 5 5 5 5 5 5 5 5 5 4 Class Distribution -------------------- 32% | Hacker-Tank 31% | Hacker-Assassin 7% | Scavenger-Skirmisher 6% | Hacker-Skirmisher 5% | Hacker-Mutant 3% | Gunner Dominant Class ---------------- Gunner | -10/Materials Gunner | -9/Materials Gunner | -9/Mines Scavenger-Skirmisher | -9/Exiles Scavenger-Skirmisher | -8/Mines Scavenger-Skirmisher | -8/Materials Assassin | -8/Storage Hacker-Skirmisher | -7/Factory Hacker-Mutant | -7/Waste Hacker-Assassin | -7/Factory Hacker-Assassin | -7/Lower Caves Hacker-Assassin | -7/Lower Caves Hacker-Tank | -7/Data Miner Hacker-Assassin | -6/Proximity Caves Hacker-Tank | -6/Factory Hacker-Tank | -6/Lower Caves Hacker-Tank | -6/Lower Caves Hacker-Tank | -6/Zion Hacker-Tank | -6/Deep Caves Hacker-Tank | -5/Proximity Caves Hacker-Assassin | -5/Factory Hacker-Tank | -5/Upper Caves Hacker-Assassin | -5/Upper Caves Hacker-Skirmisher | -5/Warlord Hacker-Tank | -4/Proximity Caves Hacker-Assassin | -4/Factory Hacker-Assassin | -4/Extension Commander-Tank | -4/Cetus Hacker-Tank | -4/Archives Hacker-Tank | -4/Hub_04(d) Hacker-Assassin | -3/Research Hacker-Tank | -2/Research Hacker-Tank | -2/Testing Resources | -11 -10 -9 -9 -9 -8 -8 -8 -7 -7 -7 -7 -7 -7 -6 -6 -6 -6 -6 -6 -5 -5 -5 -5 -5 -4 -4 -4 -4 -4 -4 -3 -2 -2 ----------- Run | Scr Mat Mat Min Exi Min Mat Sto Fac Was Fac Low Low Dat Pro Fac Low Low Zio Dee Pro Fac Upp Upp War Pro Fac Ext Cet Arc Hub Res Res Tes Matter Collected 7546 | 249 49 118 228 . 57 30 432 . 80 106 154 141 . 125 532 70 152 10 1040 178 80 220 200 130 392 596 380 204 49 69 439 573 463 Remotely . | . . . . . . . . . . . . . . . . . . . . . . . . . . . . . . . . . . Salvage Created 20170 | 27 75 307 257 . 134 146 3419 . 315 385 288 952 . 158 510 191 135 . 1629 293 121 344 509 851 635 1880 852 212 233 156 942 2075 2139 Parts 961 | 2 5 23 31 . 17 7 156 . 9 10 13 35 . 20 31 1 9 . 52 23 3 23 15 23 53 112 49 31 5 14 60 107 22 Haulers Intercepted 7 | . . . . . . 1 4 . . . . . . . . . . . . . . . . . . . . . . . . 2 . Recyclers Shooed 8 | . . . 1 . . 1 . . . . . . . . 1 . . . . . . . . . . 2 1 . . 1 1 . . Parts Field Recycled . | . . . . . . . . . . . . . . . . . . . . . . . . . . . . . . . . . . Retrieved Matter . | . . . . . . . . . . . . . . . . . . . . . . . . . . . . . . . . . . Parts Self-Destructed 286 | . . . . . . . . . . . 13 38 . 28 . 3 15 . . 23 . 26 15 69 56 . . . . . . . . Prevented 28 | . . . . . . . . . . . . . . . . . . . . . . . . 28 . . . . . . . . . Kills | -11 -10 -9 -9 -9 -8 -8 -8 -7 -7 -7 -7 -7 -7 -6 -6 -6 -6 -6 -6 -5 -5 -5 -5 -5 -4 -4 -4 -4 -4 -4 -3 -2 -2 ------- Run | Scr Mat Mat Min Exi Min Mat Sto Fac Was Fac Low Low Dat Pro Fac Low Low Zio Dee Pro Fac Upp Upp War Pro Fac Ext Cet Arc Hub Res Res Tes Combat Hostiles Destroyed 359 | . 2 12 12 . 6 1 58 . . 7 7 20 . 10 9 2 6 . 48 8 1 10 6 8 18 23 13 8 2 2 12 28 20 Guns 272 | . 2 12 11 . 4 1 26 . . 1 7 20 . 10 9 2 6 . 48 7 1 5 2 4 15 17 9 6 . 2 5 21 19 Cannons 45 | . . . . . . . . . . . . . . . . . . . . 1 . 5 4 4 3 6 3 2 2 . 7 7 1 AOE 37 | . . . 1 . 2 . 29 . . 5 . . . . . . . . . . . . . . . . . . . . . . . Classes Destroyed 26 | 1 1 3 1 . . 2 6 . . . . 1 . . 1 . . . 4 . . . . 1 . . . . . . . 3 2 Worker 25 | . . . . . . . 5 . . . . . . . . . . . . . . . . . . 7 . . . 6 2 5 . Builder 5 | . . . . . . . 1 . . . . . . . . . . . . . . . . . . 3 1 . . . . . . Tunneler 1 | 1 . . . . . . . . . . . . . . . . . . . . . . . . . . . . . . . . . Hauler 7 | . . . . . . 1 4 . . . . . . . . . . . . . . . . . . . . . . . . 2 . Recycler 10 | . . 1 . . . 1 2 . . . . . . . . . . . . . . . . . . 3 2 . . . 1 . . Carrier 2 | . . . . . . . . . . . . . . . . . . . . . . . . . . . . . . . . . 2 Mechanic 2 | . . . . . . . 2 . . . . . . . . . . . . . . . . . . . . . . . . . . Operator 1 | . . . . . . . 1 . . . . . . . . . . . . . . . . . . . . . . . . . . Watcher 6 | . . . . . . . 1 . . . . . . . . . . . . . . . . . . 2 . . . . 1 2 . Swarmer 82 | . . 7 3 . 3 . 7 . . . 2 7 . 5 4 . 5 . . 4 . 4 1 . 11 9 3 . . 2 . 5 . Saboteur 1 | . . . . . . . . . . . . . . . . . . . . . . . . . . . . . . . . . 1 Grunt 125 | . 2 4 8 . 2 . 39 . . 7 3 7 . 1 . 2 1 . . 1 . 4 4 5 4 4 4 2 . . 4 5 12 Brawler 11 | . . . 1 . 1 . 3 . . . . . . . . . . . . 1 . . 1 1 . 1 . . . . . . 2 Duelist 11 | . . 1 . . . . 3 . . . 1 3 . 1 . . . . . . . . . . . . . 1 . . . . 1 Protector 1 | . . . . . . . 1 . . . . . . . . . . . . . . . . . . . . . . . . . . Sentry 33 | . . . . . . 1 5 . . . 1 2 . 1 4 . . . . . 1 . . . 1 5 5 . 2 . 3 1 1 Demolisher 2 | . . . . . . . . . . . . . . . . . . . . . . . . . . . . . . . . 2 . Hunter 17 | . . . . . . . . . . . . 1 . 2 . . . . . 2 . 1 . . 2 . 1 2 . . 2 4 . Programmer 16 | . . . . . . . . . . . . . . . 1 . . . . . . 1 . . . 4 . . . . 3 5 2 Cetus Guard 3 | . . . . . . . . . . . . . . . . . . . . . . . . . . . . 3 . . . . . Striker 5 | . . . . . . . . . . . . . . . . . . . . . . . . . . . . . . . . 5 . Executioner 4 | . . . . . . . . . . . . . . . . . . . . . . . . 2 . . . . . . . 1 1 Z-Light 2 | . . . . . . . . . . . . . . . . . . . 2 . . . . . . . . . . . . . . Assembler 2 | . . . . . . . . . . . . . . . . . . . 2 . . . . . . . . . . . . . . Assembled 40 | . . . . . . . . . . . . . . . . . . . 40 . . . . . . . . . . . . . . Golem 5 | . . . . . . . . . . . . . . . . . . . 5 . . . . . . . . . . . . . . Fireman 1 | . . . . . . . . . . . . . . . . . . . . . . . . . . . . . . . . 1 . Best Kill Streak 37 | 1 1 5 3 . 3 2 21 . . 7 4 7 . 3 5 2 3 . 37 6 1 5 3 5 8 13 3 3 2 6 5 13 21 Combat Bots Only 37 | . 1 5 3 . 3 1 18 . . 7 4 7 . 3 5 2 3 . 37 6 1 5 3 5 8 7 2 3 2 2 4 13 19 Max Kills in Single Turn 7 | 1 1 2 1 . 2 1 7 . . 3 1 2 . 1 2 1 2 . 2 2 1 1 1 2 2 4 3 2 1 6 3 4 4 Gunslinging 1 | . . . . . . . 1 . . . . 1 . . 1 . 1 . 1 1 . . . . 1 1 . . . 1 . 1 . Exploded 5 | . . . 1 . 1 . 5 . . 3 . . . . . . . . . . . . . . . . . . . . . . . Melee . | . . . . . . . . . . . . . . . . . . . . . . . . . . . . . . . . . . Uniques/NPCs Destroyed 1 | . . . . . . . . . . . . . . . . . . . 1 . . . . . . . . . . . . . . Z-Imprinter (-6/Deep Caves) Combat | -11 -10 -9 -9 -9 -8 -8 -8 -7 -7 -7 -7 -7 -7 -6 -6 -6 -6 -6 -6 -5 -5 -5 -5 -5 -4 -4 -4 -4 -4 -4 -3 -2 -2 -------- Run | Scr Mat Mat Min Exi Min Mat Sto Fac Was Fac Low Low Dat Pro Fac Low Low Zio Dee Pro Fac Upp Upp War Pro Fac Ext Cet Arc Hub Res Res Tes Damage Taken 13765 | . 73 437 300 . 153 42 1382 . . 87 160 539 . 278 411 16 186 . 2614 351 84 325 153 602 872 738 577 226 18 119 132 2035 855 Core 10725 | . 60 347 240 . 124 35 1077 . . 71 120 422 . 211 298 12 137 . 2070 268 65 253 121 478 660 567 445 169 13 87 101 1608 666 Absorbed by Shields 4027 | . . . . . . 16 244 . . . 63 212 . 105 170 6 75 . 860 137 31 121 56 248 245 205 338 188 8 32 38 377 252 Reduced by Siege Mode 23 | . . . . . . . . . . . . . . . . . . . . . . . . . . 3 2 . . . . 18 . Redirected to Core 9747 | . 45 281 208 . 89 26 962 . . 54 120 361 . 204 281 12 128 . 1891 240 65 225 108 384 660 502 439 169 13 84 92 1450 654 Core Remaining (%) 89 | 100 100 . . . 97 . 45 . . . . . . 100 . . . . . 100 . . . . 70 . . . . 96 98 . . Volleys Fired 598 | 3 5 25 21 . 5 6 62 . 23 7 11 29 . 17 21 5 8 . 89 11 2 15 11 8 24 41 29 8 3 11 20 49 29 Largest 5 | 2 3 4 4 . 5 4 4 . 1 3 4 5 . 5 5 5 5 . 5 5 5 5 5 5 5 5 5 5 5 5 5 5 5 Hottest 263 | 60 125 175 183 . 263 218 203 . 30 113 80 108 . 108 148 134 134 . 187 139 136 136 189 189 189 189 189 153 153 153 153 153 153 Shots Fired 2161 | 6 12 91 67 . 19 22 153 . 23 15 44 122 . 72 81 25 40 . 352 50 9 60 46 40 94 157 108 40 15 19 95 184 100 Gun 1772 | 6 12 91 67 . 17 21 132 . . 9 44 122 . 72 81 25 40 . 352 44 6 43 25 24 72 93 66 24 9 9 55 133 78 Cannon 389 | . . . . . 2 1 21 . 23 6 . . . . . . . . . 6 3 17 21 16 22 64 42 16 6 10 40 51 22 Launcher . | . . . . . . . . . . . . . . . . . . . . . . . . . . . . . . . . . . Special . | . . . . . . . . . . . . . . . . . . . . . . . . . . . . . . . . . . Kinetic 1037 | 3 5 25 21 . 5 6 38 . . 4 . 13 . 4 52 15 24 . 198 33 4 30 20 16 71 90 52 24 9 9 55 133 78 Thermal 976 | . 2 22 18 . 7 12 66 . 23 5 44 109 . 68 27 10 16 . 154 17 5 30 26 24 23 67 56 16 6 10 40 51 22 Explosive . | . . . . . . . . . . . . . . . . . . . . . . . . . . . . . . . . . . Electromagnetic 148 | 3 5 44 28 . 7 4 49 . . 6 . . . . 2 . . . . . . . . . . . . . . . . . . Robot Hit Streak 46 | 3 4 10 9 . 7 9 28 . 23 24 35 33 . 14 27 20 22 . 44 18 15 22 19 30 46 36 26 17 8 9 24 34 31 Robot Miss Streak 6 | 2 1 5 6 . 3 6 4 . . 1 1 2 . 2 2 1 1 . 2 2 . 1 1 2 2 1 2 1 1 1 1 1 1 Penetration Max 3 | . . . . . . . . . . . . . . . 1 1 . . 1 1 . . 1 1 1 3 2 1 . . 2 3 3 Secondary Targets 69 | . . . . . . . 7 . . . 1 6 . 3 3 . 3 . 20 3 . 1 . . 5 3 . . . 1 . 7 6 Max Gunslinging Chain 2 | . . . . . . . 1 . . . 1 1 . 1 2 . 1 . 2 1 . 1 . . 1 2 . . . 1 . 1 1 Shots Hit Robots 1577 | 3 7 50 44 . 7 12 120 . 23 12 35 87 . 57 62 20 29 . 265 40 6 37 32 27 73 110 81 28 8 10 57 151 84 Core Hits 906 | 1 4 20 28 . 14 8 180 . 4 9 13 34 . 19 26 7 9 . 126 15 3 19 11 13 31 58 35 20 5 13 32 93 56 Critical Hits 288 | . . . . . . . . . 1 1 . 1 . . 8 1 3 . 35 6 . 5 5 8 24 40 27 7 1 2 17 57 39 Critical Kills 115 | . . . . . . . . . . . . 1 . . 4 . 2 . 17 5 . 1 2 4 10 18 8 3 . . 6 19 15 Critical Parts Destroyed 151 | . . . . . . . . . . 1 . . . . 4 1 1 . 14 1 . 4 3 4 14 22 14 4 1 2 10 32 19 Melee Attacks 113 | . . . . . . . 11 . . 12 . 9 . 2 11 . 1 . 9 4 7 1 3 . . 22 . 2 . 3 12 . 4 Impact . | . . . . . . . . . . . . . . . . . . . . . . . . . . . . . . . . . . Slashing 109 | . . . . . . . 11 . . 12 . 9 . 2 11 . 1 . 9 4 7 1 3 . . 22 . 2 . 3 12 . . Piercing 4 | . . . . . . . . . . . . . . . . . . . . . . . . . . . . . . . . . 4 Sneak Attacks 1 | . . . . . . . . . . . . . . . . . . . . . . . . . . 1 . . . . . . . Combat Hostiles . | . . . . . . . . . . . . . . . . . . . . . . . . . . . . . . . . . . Follow-up Attacks . | . . . . . . . . . . . . . . . . . . . . . . . . . . . . . . . . . . Damage Inflicted 43329 | 53 92 593 905 . 271 255 7073 . 629 1032 646 1612 . 970 976 332 255 . 4818 764 140 1003 779 1017 1523 3659 2426 1087 308 465 2350 5020 2276 Guns 22659 | 53 92 593 757 . 93 198 1743 . . 169 646 1612 . 970 976 332 255 . 4818 484 51 348 195 346 697 1092 783 370 50 112 715 2533 1576 Cannons 13395 | . . . . . 8 . 128 . 629 99 . . . . . . . . . 280 89 655 584 671 826 2321 1639 717 258 117 1602 2072 700 Explosions 6992 | . . . 148 . 170 57 5202 . . 764 . . . . . . . . . . . . . . . . . . . 236 . 415 . Melee 233 | . . . . . . . . . . . . . . . . . . . . . . . . . . 200 . . . . 33 . . Ramming 50 | . . . . . . . . . . . . . . . . . . . . . . . . . . 46 4 . . . . . . Kinetic 11542 | 28 12 80 224 . 71 58 534 . . 85 . 173 . 41 480 179 65 . 1571 277 12 104 92 79 663 983 375 370 50 112 715 2533 1576 Thermal 23467 | . 13 95 279 . . 133 1234 . 629 81 646 1439 . 929 457 153 190 . 3247 487 128 899 687 938 860 2430 2047 717 258 117 1602 2072 700 Explosive 633 | . . . . . . . 218 . . . . . . . . . . . . . . . . . . . . . . . . 415 . Electromagnetic 7404 | 25 67 418 402 . 200 64 5087 . . 866 . . . . 39 . . . . . . . . . . . . . . 236 . . . Impact . | . . . . . . . . . . . . . . . . . . . . . . . . . . . . . . . . . . Slashing 233 | . . . . . . . . . . . . . . . . . . . . . . . . . . 200 . . . . 33 . . Piercing . | . . . . . . . . . . . . . . . . . . . . . . . . . . . . . . . . . . Highest Corruption 49 | . . . . . 4 3 49 . . 6 6 6 6 6 . . . . . . . . . . . 1 1 . . . 5 1 1 Average Corruption 8 | . . . . . 3 3 26 . . 5 6 6 6 6 . . . . . . . . . . . 1 1 . . . 5 1 1 Corruption Purged 3 | . . . . . . . . . . . . . . . . . . . . . . . . . . 1 1 . . . . . 1 Effects 199 | . . . . . 5 . 100 . . 15 13 33 3 18 . . . . . . . . . . . 5 . . . . 3 3 1 Message Errors 32 | . . . . . 3 . 7 . . 3 2 5 . 6 . . . . . . . . . . . 2 . . . . 1 2 1 Matter Fused 29 | . . . . . 2 . 12 . . 3 1 7 1 3 . . . . . . . . . . . . . . . . . . . Heat Flow Errors 14 | . . . . . . . 6 . . 3 2 1 1 1 . . . . . . . . . . . . . . . . . . . Energy Discharges 14 | . . . . . . . 6 . . . 3 1 . 1 . . . . . . . . . . . 1 . . . . 2 . . Parts Rejected 2 | . . . . . . . 1 . . . . 1 . . . . . . . . . . . . . . . . . . . . . Data Loss (minor) 16 | . . . . . . . 6 . . 4 1 4 1 . . . . . . . . . . . . . . . . . . . . Data Loss (major) 7 | . . . . . . . . . . 1 1 3 . 2 . . . . . . . . . . . . . . . . . . . Misfires 3 | . . . . . . . 1 . . . . 2 . . . . . . . . . . . . . . . . . . . . . Alerts 1 | . . . . . . . 1 . . . . . . . . . . . . . . . . . . . . . . . . . . Misdirections 8 | . . . . . . . 8 . . . . . . . . . . . . . . . . . . . . . . . . . . Targeting Errors 59 | . . . . . . . 41 . . 1 3 7 . 5 . . . . . . . . . . . 1 . . . . . 1 . Weapon Failures 14 | . . . . . . . 11 . . . . 2 . . . . . . . . . . . . . 1 . . . . . . . Overload Shots . | . . . . . . . . . . . . . . . . . . . . . . . . . . . . . . . . . . Overflow Damage 696 | . . . 18 . . 7 144 . 4 6 . . . . . . . . . 10 . 62 16 . 56 116 30 . . . 138 61 28 Projectiles 526 | . . . . . . . . . 4 6 . . . . . . . . . 10 . 62 16 . 56 115 30 . . . 138 61 28 Explosions 169 | . . . 18 . . 7 144 . . . . . . . . . . . . . . . . . . . . . . . . . . Melee 1 | . . . . . . . . . . . . . . . . . . . . . . . . . . 1 . . . . . . . Knockbacks 1 | . . . . . . . . . . . . . . . . . . . . . . . . . . 1 . . . . . . . Impact 1 | . . . . . . . . . . . . . . . . . . . . . . . . . . 1 . . . . . . . Kinetic . | . . . . . . . . . . . . . . . . . . . . . . . . . . . . . . . . . . Secondary . | . . . . . . . . . . . . . . . . . . . . . . . . . . . . . . . . . . Self-Inflicted Damage 512 | . . . 99 . 68 33 149 . . . . . . . . . . . . . . . . . . 20 . . . 8 . 135 . Shots 11 | . . . 2 . 2 1 4 . . . . . . . . . . . . . . . . . . . . . . 1 . 1 . Rammed 3 | . . . . . . . . . . . . . . . . . . . . . . . . . . 2 1 . . . . . . Targets Rammed 3 | . . . . . . . . . . . . . . . . . . . . . . . . . . 2 1 . . . . . . Kicked . | . . . . . . . . . . . . . . . . . . . . . . . . . . . . . . . . . . Crushed . | . . . . . . . . . . . . . . . . . . . . . . . . . . . . . . . . . . Highest Temperature 412 | . 42 412 138 . 84 36 399 . . 236 230 51 143 124 6 . 4 . 211 7 . . 42 185 57 77 186 65 27 27 54 54 107 Average Temperature 55 | . 18 140 37 . 26 18 56 . . 101 99 51 91 72 4 . 3 . 51 2 . . 25 87 17 15 72 24 18 18 22 22 37 Received Heat Transfer 2838 | . 42 102 84 . 36 6 543 . . 45 80 116 . 28 60 . 18 . 634 48 30 72 66 132 138 127 74 30 . 9 29 47 242 Effects 1 | . . . . . . . 1 . . . . . . . . . . . . . . . . . . . . . . . . . . Shutdowns 1 | . . . . . . . 1 . . . . . . . . . . . . . . . . . . . . . . . . . . Siege Activations 7 | . . . . . . . . . . . . . . . . . . . . . . . . . . 3 1 . . . . 3 . Total Turns 151 | . . . . . . . . . . . . . . . . . . . . . . . . . . 48 21 . . . . 82 . Longest Duration 56 | . . . . . . . . . . . . . . . . . . . . . . . . . . 31 21 . . . . 56 . Robots Corrupted 6 | . . . . . . . 5 . . 1 . . . . . . . . . . . . . . . . . . . . . . . Combat Hostiles 4 | . . . . . . . 3 . . 1 . . . . . . . . . . . . . . . . . . . . . . . Parts Fried 34 | . . 2 . . . . 23 . . 4 . . . . . . . . . . . . . . . . 4 1 . . . . . Impact Corruptions 1 | . . . . . . . . . . . . . . . . . . . . . . . . . . 1 . . . . . . . Robots Melted . | . . . . . . . . . . . . . . . . . . . . . . . . . . . . . . . . . . Combat Hostiles . | . . . . . . . . . . . . . . . . . . . . . . . . . . . . . . . . . . Parts Melted 36 | . . . 1 . . 1 1 . . . 2 12 . 3 2 1 . . 7 1 1 . . . 1 . . . . . 1 1 1 Heat Transferred 25207 | . 37 222 483 . . 285 2265 . 851 111 1258 2812 . 1813 888 296 370 . 4707 557 124 856 461 671 512 1361 1293 374 150 75 800 1150 425 Parts Sabotaged . | . . . . . . . . . . . . . . . . . . . . . . . . . . . . . . . . . . Parts Stolen . | . . . . . . . . . . . . . . . . . . . . . . . . . . . . . . . . . . Parts Stripped . | . . . . . . . . . . . . . . . . . . . . . . . . . . . . . . . . . . Power Chain Reactions 9 | . . . 2 . . 1 5 . . 1 . . . . . . . . . . . . . . . . . . . . . . . Missiles Intercepted 4 | . . . . . . . . . . . . . . . . . . . . . . . . . . . . . . . . 4 . Latent Energy Used 3151 | . . . . . 195 200 2356 . . 400 . . . . . . . . . . . . . . . . . . . . . . . LE Corruption 55 | . . . . . 4 3 42 . . 6 . . . . . . . . . . . . . . . . . . . . . . . Alert | -11 -10 -9 -9 -9 -8 -8 -8 -7 -7 -7 -7 -7 -7 -6 -6 -6 -6 -6 -6 -5 -5 -5 -5 -5 -4 -4 -4 -4 -4 -4 -3 -2 -2 ------- Run | Scr Mat Mat Min Exi Min Mat Sto Fac Was Fac Low Low Dat Pro Fac Low Low Zio Dee Pro Fac Upp Upp War Pro Fac Ext Cet Arc Hub Res Res Tes Peak Influence 2313 | 5 68 373 248 . 170 161 1701 773 270 390 . . . . 259 . . . . . 45 . . . . 518 911 800 408 771 681 656 2313 Average Influence 322 | 1 37 228 128 . 92 117 910 773 270 215 . . . . 104 . . . . . 9 . . . . 202 337 522 363 334 431 290 1855 Maximum Alert Level 5 | . . 1 1 . . . 5 3 1 1 . . . . 1 . . . . . . . . . . 2 3 3 2 3 2 2 5 Low Security (%) 26 | 100 100 43 82 . 100 100 9 . . 31 . . . . 68 . . . . . 100 . . . . 54 41 3 . 19 . 40 . Level 1 27 | . . 56 17 . . . 2 . 100 68 . . . . 31 . . . . . . . . . . 17 30 20 33 51 46 16 . Level 2 33 | . . . . . . . 8 . . . . . . . . . . . . . . . . . . 28 9 60 67 15 53 43 . Level 3 7 | . . . . . . . 55 100 . . . . . . . . . . . . . . . . . . 18 16 . 14 . . . Level 4 . | . . . . . . . 18 . . . . . . . . . . . . . . . . . . . . . . . . . . Level 5 . | . . . . . . . 6 . . . . . . . . . . . . . . . . . . . . . . . . . . High Security . | . . . . . . . . . . . . . . . . . . . . . . . . . . . . . . . . . . Max Security 5 | . . . . . . . . . . . . . . . . . . . . . . . . . . . . . . . . . 99 Squads Dispatched 57 | . 1 1 1 . 1 . 12 . . 3 . 1 . . 5 . . . . . 1 . . . . 3 4 . . 1 3 4 16 Investigation 7 | . 1 . 1 . . . 3 . . . . . . . . . . . . . . . . . . 1 1 . . . . . . Extermination 7 | . . . . . . . . . . 1 . . . . 3 . . . . . . . . . . 1 . . . . 2 . . Reinforcement 19 | . . 1 . . 1 . 3 . . 2 . . . . 2 . . . . . 1 . . . . . 3 . . 1 1 4 . Assault 21 | . . . . . . . 5 . . . . 1 . . . . . . . . . . . . . 1 . . . . . . 14 Garrison 3 | . . . . . . . 1 . . . . . . . . . . . . . . . . . . . . . . . . . 2 Intercept . | . . . . . . . . . . . . . . . . . . . . . . . . . . . . . . . . . . Construction Impeded 4 | . . . . . 1 . . . . . . . . . . . . . . . . . . . . . 2 . . 1 . . . Haulers Reinforced 1 | . . . . . . . . . . . . . . . . . . . . . . . . . . . . . . . . 1 . Stealth | -11 -10 -9 -9 -9 -8 -8 -8 -7 -7 -7 -7 -7 -7 -6 -6 -6 -6 -6 -6 -5 -5 -5 -5 -5 -4 -4 -4 -4 -4 -4 -3 -2 -2 --------- Run | Scr Mat Mat Min Exi Min Mat Sto Fac Was Fac Low Low Dat Pro Fac Low Low Zio Dee Pro Fac Upp Upp War Pro Fac Ext Cet Arc Hub Res Res Tes Distress Signals 18 | . . 3 . . . . 3 . . . . . . . . . . . . . . . . . . . 4 2 . . 1 5 . Communications Jammed . | . . . . . . . . . . . . . . . . . . . . . . . . . . . . . . . . . . Distress Signals . | . . . . . . . . . . . . . . . . . . . . . . . . . . . . . . . . . . Times Spotted 576 | . 5 19 14 . 6 2 90 . . 9 7 27 . 16 15 4 9 . 61 8 5 12 8 17 22 31 36 15 3 24 19 44 48 Peak Tracking Total 36 | . 2 8 3 . 3 1 11 . . 4 4 7 . 4 5 4 4 . 36 4 2 5 4 13 5 5 5 5 1 20 5 10 21 Tactical Retreats 43 | . 1 . 1 . . . 10 . . . . 4 . . . . . . 8 1 . 2 1 . 2 1 2 . . 2 1 3 4 Traps | -11 -10 -9 -9 -9 -8 -8 -8 -7 -7 -7 -7 -7 -7 -6 -6 -6 -6 -6 -6 -5 -5 -5 -5 -5 -4 -4 -4 -4 -4 -4 -3 -2 -2 ------- Run | Scr Mat Mat Min Exi Min Mat Sto Fac Was Fac Low Low Dat Pro Fac Low Low Zio Dee Pro Fac Upp Upp War Pro Fac Ext Cet Arc Hub Res Res Tes Traps Triggered 15 | . 1 . . . . . 4 1 . 1 . . . . 1 . . . . . . . . . . 2 2 . . 2 1 . . Indirectly 1 | . . . . . . . 1 . . . . . . . . . . . . . . . . . . . . . . . . . . Trap Hack Attempts . | . . . . . . . . . . . . . . . . . . . . . . . . . . . . . . . . . . Triggered . | . . . . . . . . . . . . . . . . . . . . . . . . . . . . . . . . . . Disarmed . | . . . . . . . . . . . . . . . . . . . . . . . . . . . . . . . . . . Reprogrammed . | . . . . . . . . . . . . . . . . . . . . . . . . . . . . . . . . . . Reused . | . . . . . . . . . . . . . . . . . . . . . . . . . . . . . . . . . . Traps Extracted . | . . . . . . . . . . . . . . . . . . . . . . . . . . . . . . . . . . Installed . | . . . . . . . . . . . . . . . . . . . . . . . . . . . . . . . . . . Triggered 9 | . . . . . . . . . . . . . . . . . . . . . . . 1 8 . . . . . . . . . Machines | -11 -10 -9 -9 -9 -8 -8 -8 -7 -7 -7 -7 -7 -7 -6 -6 -6 -6 -6 -6 -5 -5 -5 -5 -5 -4 -4 -4 -4 -4 -4 -3 -2 -2 ---------- Run | Scr Mat Mat Min Exi Min Mat Sto Fac Was Fac Low Low Dat Pro Fac Low Low Zio Dee Pro Fac Upp Upp War Pro Fac Ext Cet Arc Hub Res Res Tes Machines Disabled 48 | . . 1 . . . . 16 . . . . 1 . . . . . . 2 . . . . . . 2 2 3 2 14 1 2 2 Max in Single Turn 9 | . . 1 . . . . 3 . . . . 1 . . . . . . 1 . . . . . . 1 . 1 . 9 1 1 1 Garrison Access 6 | . . . . . . . 1 . . . . . . . 2 . . . . . 1 . . . . 1 . . . . . . 1 Network Hub 1 | . . . . . . . . . . . . . . . . . . . . . . . . . . . . . . 1 . . . Machines Sabotaged . | . . . . . . . . . . . . . . . . . . . . . . . . . . . . . . . . . . Garrisons Compromised . | . . . . . . . . . . . . . . . . . . . . . . . . . . . . . . . . . . Overloaded Fab Kills . | . . . . . . . . . . . . . . . . . . . . . . . . . . . . . . . . . . Fab Network Shutdowns . | . . . . . . . . . . . . . . . . . . . . . . . . . . . . . . . . . . Hacking | -11 -10 -9 -9 -9 -8 -8 -8 -7 -7 -7 -7 -7 -7 -6 -6 -6 -6 -6 -6 -5 -5 -5 -5 -5 -4 -4 -4 -4 -4 -4 -3 -2 -2 --------- Run | Scr Mat Mat Min Exi Min Mat Sto Fac Was Fac Low Low Dat Pro Fac Low Low Zio Dee Pro Fac Upp Upp War Pro Fac Ext Cet Arc Hub Res Res Tes Machines Accessed 79 | . 5 2 2 5 . 2 9 1 . 5 . . 4 . 9 1 . . . . 4 1 1 2 . 9 8 3 . 1 4 1 . Terminals 56 | . 5 2 1 . . 2 9 . . 3 . . . . 6 . . . . . 3 . . . . 8 8 3 . 1 4 1 . Fabricators 2 | . . . . . . . . . . 1 . . . . 1 . . . . . . . . . . . . . . . . . . Repair Stations . | . . . . . . . . . . . . . . . . . . . . . . . . . . . . . . . . . . Recycling Units . | . . . . . . . . . . . . . . . . . . . . . . . . . . . . . . . . . . Scanalyzers 1 | . . . . . . . . . . 1 . . . . . . . . . . . . . . . . . . . . . . . Garrison Access 5 | . . . . . . . . 1 . . . . . . 2 . . . . . 1 . . . . 1 . . . . . . . Total Hacks 309 | . 13 5 3 49 . 6 28 2 . 21 . . 27 . 27 1 . . . . 12 1 1 2 . 23 37 13 . 2 27 9 . Successful 216 | . 4 2 2 49 . 4 9 . . 15 . . 27 . 19 1 . . . . 9 1 1 2 . 15 26 10 . 1 17 2 . Failed 92 | . 9 3 1 . . 2 19 2 . 6 . . . . 8 . . . . . 3 . . . . 8 10 3 . 1 10 7 . Catastrophic 18 | . 1 1 . . . . 5 . . . . . . . 3 . . . . . 1 . . . . 2 . 1 . . 2 2 . Database Lockouts 1 | . . . . . . . . . . . . . . . . . . . . . . . . . . . 1 . . . . . . Manual 155 | . 7 3 2 1 . 4 16 . . 8 . . . . 10 . . 4 . . 9 . . 1 . 19 27 10 . 2 23 9 . Terminals 212 | . 13 5 2 . . 6 28 . . 15 . . . . 22 . . . . . 11 . . . . 22 37 13 . 2 27 9 . Fabricators 6 | . . . . . . . . . . 3 . . . . 3 . . . . . . . . . . . . . . . . . . Repair Stations . | . . . . . . . . . . . . . . . . . . . . . . . . . . . . . . . . . . Recycling Units . | . . . . . . . . . . . . . . . . . . . . . . . . . . . . . . . . . . Scanalyzers 3 | . . . . . . . . . . 3 . . . . . . . . . . . . . . . . . . . . . . . Garrison Access 6 | . . . . . . . . 2 . . . . . . 2 . . . . . 1 . . . . 1 . . . . . . . Terminal Hacks 168 | . . 1 1 49 . 2 7 . . 9 . . 27 . 14 1 . . . . 4 1 1 2 . 9 16 9 . . 13 2 . Record 71 | . . . . 48 . . . . . . . . 11 . 1 . . . . . . . . . . 1 . 5 . . 5 . . Part Schematic 6 | . . . . . . . . . . . . . 6 . . . . . . . . . . . . . . . . . . . . Robot Schematic 7 | . . . . . . . . . . . . . 7 . . . . . . . . . . . . . . . . . . . . Robot Analysis 1 | . . . . . . . . . . 1 . . . . . . . . . . . . . . . . . . . . . . . Prototype ID Bank 16 | . . . . . . 1 1 . . 1 . . 3 . 1 . . . . . 2 . . . . . 3 . . . 3 1 . Open Door 10 | . . . 1 . . . 2 . . . . . . . . 1 . . . . . 1 1 2 . . 1 1 . . . . . Branch Access Points 7 | . . 1 . . . 1 . . . 1 . . . . 1 . . . . . 1 . . . . 1 . . . . 1 . . Emergency Access Points 1 | . . . . . . . 1 . . . . . . . . . . . . . . . . . . . . . . . . . . Alert Level 7 | . . . . . . . . . . 2 . . . . 3 . . . . . . . . . . 1 1 . . . . . . Unreport Threat 20 | . . . . . . . 2 . . 3 . . . . 2 . . . . . . . . . . 4 3 3 . . 2 1 . Locate Traps 14 | . . . . . . . . . . 1 . . . . 3 . . . . . 1 . . . . 2 6 . . . 1 . . Maintenance Status 1 | . . . . . . . . . . . . . . . 1 . . . . . . . . . . . . . . . . . . Recall Investigation 2 | . . . . . . . 1 . . . . . . . . . . . . . . . . . . . 1 . . . . . . Recall Reinforcements 1 | . . . . . . . . . . . . . . . 1 . . . . . . . . . . . . . . . . . . Registered Components 1 | . . . . . . . . . . . . . . . 1 . . . . . . . . . . . . . . . . . . Registered Prototypes 1 | . . . . . . . . . . . . . . . . . . . . . . . . . . . 1 . . . . . . Zone Layout 1 | . . . . . . . . . . . . . . . . . . . . . . . . . . . . . . . 1 . . EX-Prototype ID Bank 1 | . . . . 1 . . . . . . . . . . . . . . . . . . . . . . . . . . . . . Fabricator Hacks 4 | . . . . . . . . . . 2 . . . . 2 . . . . . . . . . . . . . . . . . . Network Status 1 | . . . . . . . . . . 1 . . . . . . . . . . . . . . . . . . . . . . . Load Schematic 2 | . . . . . . . . . . 1 . . . . 1 . . . . . . . . . . . . . . . . . . Build 1 | . . . . . . . . . . . . . . . 1 . . . . . . . . . . . . . . . . . . Repair Station Hacks . | . . . . . . . . . . . . . . . . . . . . . . . . . . . . . . . . . . Recycling Unit Hacks . | . . . . . . . . . . . . . . . . . . . . . . . . . . . . . . . . . . Scanalyzer 2 | . . . . . . . . . . 2 . . . . . . . . . . . . . . . . . . . . . . . Insert Component 1 | . . . . . . . . . . 1 . . . . . . . . . . . . . . . . . . . . . . . Analyze 1 | . . . . . . . . . . 1 . . . . . . . . . . . . . . . . . . . . . . . Garrison Access Hacks 4 | . . . . . . . . . . . . . . . 2 . . . . . 1 . . . . 1 . . . . . . . Seal Access 4 | . . . . . . . . . . . . . . . 2 . . . . . 1 . . . . 1 . . . . . . . Unauthorized Hacks 94 | . 11 3 2 . . 4 6 . . 4 . . . . 3 . . . . . 10 . . . . 13 20 2 . 3 13 . . Terminals 38 | . 4 1 1 . . 2 2 . . 2 . . . . 1 . . . . . 4 . . . . 5 10 1 . 1 4 . . Track 15 | . 2 . . . . . . . . . . . . . . . . . . . 1 . . . . 3 7 . . . 2 . . Assimilate 1 | . . . . . . . . . . . . . . . . . . . . . 1 . . . . . . . . . . . . Botnet 22 | . 2 1 1 . . 2 2 . . 2 . . . . 1 . . . . . 2 . . . . 2 3 1 . 1 2 . . Fabricators . | . . . . . . . . . . . . . . . . . . . . . . . . . . . . . . . . . . Repair Stations . | . . . . . . . . . . . . . . . . . . . . . . . . . . . . . . . . . . Recycling Units . | . . . . . . . . . . . . . . . . . . . . . . . . . . . . . . . . . . Scanalyzers . | . . . . . . . . . . . . . . . . . . . . . . . . . . . . . . . . . . Garrison Access . | . . . . . . . . . . . . . . . . . . . . . . . . . . . . . . . . . . Data Cores Recovered 2 | . . . . . . . 1 . . . . . . . 1 . . . . . . . . . . . . . . . . . . Used 2 | . . . . . . . 1 . . . . . . . 1 . . . . . . . . . . . . . . . . . . Hacking Detections 60 | . 5 2 1 . . 2 9 1 . 4 . . . . 7 . . . . . 3 . . . . 8 8 4 . 1 4 1 . Full Trace Events 4 | . 1 . . . . . 2 . . . . . . . . . . . . . . . . . . 1 . . . . . . . Feedback Events 2 | . . . . . . . 1 . . . . . . . . . . . . . . . . . . 1 . . . . . . . Corruption 2 | . . . . . . . 1 . . . . . . . . . . . . . . . . . . 1 . . . . . . . Feedback Blocked . | . . . . . . . . . . . . . . . . . . . . . . . . . . . . . . . . . . Robot Schematics Acquired 7 | . . . . . . . . . . . . . 7 . . . . . . . . . . . . . . . . . . . . Robots Built . | . . . . . . . . . . . . . . . . . . . . . . . . . . . . . . . . . . Matter . | . . . . . . . . . . . . . . . . . . . . . . . . . . . . . . . . . . Time . | . . . . . . . . . . . . . . . . . . . . . . . . . . . . . . . . . . Total Robot Build Rating . | . . . . . . . . . . . . . . . . . . . . . . . . . . . . . . . . . . Part Schematics Acquired 7 | . . . . . . . . . . 1 . . 6 . . . . . . . . . . . . . . . . . . . . Parts Built 1 | . . . . . . . . . . . . . . . 1 . . . . . . . . . . . . . . . . . . Matter 318 | . . . . . . . . . . . . . . . 318 . . . . . . . . . . . . . . . . . . Time 169 | . . . . . . . . . . . . . . . 169 . . . . . . . . . . . . . . . . . . Total Part Build Rating 6 | . . . . . . . . . . . . . . . 6 . . . . . . . . . . . . . . . . . . Parts Repaired . | . . . . . . . . . . . . . . . . . . . . . . . . . . . . . . . . . . Time . | . . . . . . . . . . . . . . . . . . . . . . . . . . . . . . . . . . Parts Recycled . | . . . . . . . . . . . . . . . . . . . . . . . . . . . . . . . . . . Recycled Matter . | . . . . . . . . . . . . . . . . . . . . . . . . . . . . . . . . . . Retrieved Matter . | . . . . . . . . . . . . . . . . . . . . . . . . . . . . . . . . . . Retrieved Components . | . . . . . . . . . . . . . . . . . . . . . . . . . . . . . . . . . . Parts Scanalyzed 1 | . . . . . . . . . . 1 . . . . . . . . . . . . . . . . . . . . . . . Part Schematics Acquired 1 | . . . . . . . . . . 1 . . . . . . . . . . . . . . . . . . . . . . . Parts Damaged . | . . . . . . . . . . . . . . . . . . . . . . . . . . . . . . . . . . Bothacking | -11 -10 -9 -9 -9 -8 -8 -8 -7 -7 -7 -7 -7 -7 -6 -6 -6 -6 -6 -6 -5 -5 -5 -5 -5 -4 -4 -4 -4 -4 -4 -3 -2 -2 ------------ Run | Scr Mat Mat Min Exi Min Mat Sto Fac Was Fac Low Low Dat Pro Fac Low Low Zio Dee Pro Fac Upp Upp War Pro Fac Ext Cet Arc Hub Res Res Tes Used RIF Installer . | . . . . . . . . . . . . . . . . . . . . . . . . . . . . . . . . . . Robots Hacked . | . . . . . . . . . . . . . . . . . . . . . . . . . . . . . . . . . . Non-combat . | . . . . . . . . . . . . . . . . . . . . . . . . . . . . . . . . . . Combat . | . . . . . . . . . . . . . . . . . . . . . . . . . . . . . . . . . . Robot Hacks Applied . | . . . . . . . . . . . . . . . . . . . . . . . . . . . . . . . . . . Relay Couplers Released 2 | . . . . . . . 1 . . . . . . . . . . . . . . . . . . . . . . . . . 1 Machine Destruction 2 | . . . . . . . 1 . . . . . . . . . . . . . . . . . . . . . . . . . 1 Robots Rewired 22 | . . . . . . . . . . . . 2 . . . . . . . . . . . 3 . . 17 . . . . . . Allies Hacked . | . . . . . . . . . . . . . . . . . . . . . . . . . . . . . . . . . . Hacks Repelled . | . . . . . . . . . . . . . . . . . . . . . . . . . . . . . . . . . . Allies | -11 -10 -9 -9 -9 -8 -8 -8 -7 -7 -7 -7 -7 -7 -6 -6 -6 -6 -6 -6 -5 -5 -5 -5 -5 -4 -4 -4 -4 -4 -4 -3 -2 -2 -------- Run | Scr Mat Mat Min Exi Min Mat Sto Fac Was Fac Low Low Dat Pro Fac Low Low Zio Dee Pro Fac Upp Upp War Pro Fac Ext Cet Arc Hub Res Res Tes Total Allies 37 | . . . . . . . 2 . . . . 2 . 1 . . . . . . . . . 3 . . 29 . . . . . . Largest Group 22 | . . . . . . . 2 . . . . 2 1 1 1 1 1 1 1 . . . . 3 . . 22 18 7 6 . . . Highest-Rated Group 1006 | . . . . . . . 62 . . . . 50 20 94 94 94 94 94 94 . . . . 155 . . 1006 819 369 241 . . . Highest-Rated Ally 156 | . . . . . . . 31 . . . . 30 20 94 94 94 94 94 94 . . . . 60 . . 156 144 128 49 . . . Total Orders 4 | . . . . . . . . . . . . . . . . . 2 . . . . . . . . . 2 . . . . . . STAY 1 | . . . . . . . . . . . . . . . . . . . . . . . . . . . 1 . . . . . . ROAM 1 | . . . . . . . . . . . . . . . . . 1 . . . . . . . . . . . . . . . . FOLLOW 1 | . . . . . . . . . . . . . . . . . . . . . . . . . . . 1 . . . . . . EXPLORE 1 | . . . . . . . . . . . . . . . . . 1 . . . . . . . . . . . . . . . . Ally Attacks 406 | . . . . . . . 9 . . . . 17 . 15 16 9 7 . 13 . . . . 16 . . 190 75 15 24 . . . Total Damage 12843 | . . . . . . . 84 . . . . 431 . 428 513 371 192 . 329 . . . . 464 . . 6348 2469 532 682 . . . Kills 79 | . . . . . . . 2 . . . . 4 . 6 5 2 3 . 2 . . . . 3 . . 30 16 2 4 . . . Allies Corrupted . | . . . . . . . . . . . . . . . . . . . . . . . . . . . . . . . . . . Allies Melted . | . . . . . . . . . . . . . . . . . . . . . . . . . . . . . . . . . . Intel | -11 -10 -9 -9 -9 -8 -8 -8 -7 -7 -7 -7 -7 -7 -6 -6 -6 -6 -6 -6 -5 -5 -5 -5 -5 -4 -4 -4 -4 -4 -4 -3 -2 -2 ------- Run | Scr Mat Mat Min Exi Min Mat Sto Fac Was Fac Low Low Dat Pro Fac Low Low Zio Dee Pro Fac Upp Upp War Pro Fac Ext Cet Arc Hub Res Res Tes Robot Analysis Total 1 | . . . . . . . . . . 1 . . . . . . . . . . . . . . . . . . . . . . . Derelict Logs Recovered 11 | . . . 1 . . . . . . . . 1 . . . 1 . 2 . 2 . . 2 . 2 . . . . . . . . Drone Launches 2 | . . . . . . . . . . . . . . . . . 2 . . . . . . . . . . . . . . . . Drone Recoveries . | . . . . . . . . . . . . . . . . . . . . . . . . . . . . . . . . . . Exploration | -11 -10 -9 -9 -9 -8 -8 -8 -7 -7 -7 -7 -7 -7 -6 -6 -6 -6 -6 -6 -5 -5 -5 -5 -5 -4 -4 -4 -4 -4 -4 -3 -2 -2 ------------- Run | Scr Mat Mat Min Exi Min Mat Sto Fac Was Fac Low Low Dat Pro Fac Low Low Zio Dee Pro Fac Upp Upp War Pro Fac Ext Cet Arc Hub Res Res Tes Turns Passed 20128 | 46 204 444 732 470 387 208 891 111 227 856 402 737 111 582 1280 362 408 970 1270 483 834 615 612 641 653 1546 1211 630 100 225 1019 601 260 Spaces Moved 12690 | 37 166 283 522 425 295 148 478 85 143 596 282 408 84 403 905 270 294 804 627 328 511 403 453 447 416 919 539 301 46 108 608 271 85 Core . | . . . . . . . . . . . . . . . . . . . . . . . . . . . . . . . . . . Treads 716 | . . . . . . . . . . . . . . . . . . . . . . . . . . 9 269 301 46 84 . 7 . Legs 2 | 2 . . . . . . . . . . . . . . . . . . . . . . . . . . . . . . . . . Wheels 11972 | 35 166 283 522 425 295 148 478 85 143 596 282 408 84 403 905 270 294 804 627 328 511 403 453 447 416 910 270 . . 24 608 264 85 Hover . | . . . . . . . . . . . . . . . . . . . . . . . . . . . . . . . . . . Flight . | . . . . . . . . . . . . . . . . . . . . . . . . . . . . . . . . . . Fastest Speed 80 | 80 80 100 110 110 110 120 110 110 100 120 120 120 120 120 120 120 120 120 120 120 120 120 120 120 120 120 120 180 180 120 110 120 120 Average Speed 122 | 82 97 108 110 110 118 120 119 119 112 123 120 120 120 120 120 120 120 120 120 120 122 125 120 122 120 120 149 180 180 166 119 121 120 Slowest Speed 180 | 120 100 110 110 110 120 120 120 120 120 130 120 120 120 120 120 120 120 120 120 120 130 130 120 130 120 180 180 180 180 180 120 180 120 Overloaded Moves . | . . . . . . . . . . . . . . . . . . . . . . . . . . . . . . . . . . Propulsion Burnouts . | . . . . . . . . . . . . . . . . . . . . . . . . . . . . . . . . . . Robots Hopped . | . . . . . . . . . . . . . . . . . . . . . . . . . . . . . . . . . . Cave-ins Triggered . | . . . . . . . . . . . . . . . . . . . . . . . . . . . . . . . . . . Exploration Rate (%) 50 | 3 36 30 65 92 61 17 80 2 80 25 65 60 64 61 36 39 69 86 82 58 18 63 66 67 69 29 79 84 71 19 20 8 18 Regions Visited 33 Branch Regions 22 Pre-discovered Areas 9 | . . . 1 1 . . 1 . . . . 1 1 . . . . 1 . . . . 1 . 2 . . . . . . . . Known Exits Taken 8 | . . 1 . . . 1 . . . 1 . . . . 1 . . . . . 1 . 1 . 1 1 . . . . . . . Unknown Exits Taken 23 | 1 1 . 1 1 1 . 1 . . . 1 1 1 1 . 1 1 1 1 1 . 1 . 1 . . 1 1 1 1 1 1 . Scrap Searched 38 | . . . 2 . . . . . . . . 16 . 1 . 5 2 1 . 2 . 2 4 . 3 . . . . . . . . Spaces Dug 93 | . . . . . . . 3 . . 11 . 9 . 2 11 . 1 . 3 4 7 1 3 . . 19 . . . 6 10 . 3 Terrain Destroyed 708 | . . . 20 . 17 33 250 . . 39 . 11 . 3 11 1 1 . 4 5 7 3 12 1 29 36 9 4 7 171 18 5 11 Melee 90 | . . . . . . . 3 . . 11 . 9 . 2 11 . 1 . 3 4 7 1 3 . . 19 . . . 3 10 . 3 Projectile 113 | . . . . . . . . . . . . 2 . 1 . 1 . . 1 1 . 2 9 1 29 17 9 4 7 9 8 4 8 AOE 505 | . . . 20 . 17 33 247 . . 28 . . . . . . . . . . . . . . . . . . . 159 . 1 . Actions | -11 -10 -9 -9 -9 -8 -8 -8 -7 -7 -7 -7 -7 -7 -6 -6 -6 -6 -6 -6 -5 -5 -5 -5 -5 -4 -4 -4 -4 -4 -4 -3 -2 -2 --------- Run | Scr Mat Mat Min Exi Min Mat Sto Fac Was Fac Low Low Dat Pro Fac Low Low Zio Dee Pro Fac Upp Upp War Pro Fac Ext Cet Arc Hub Res Res Tes Total 15693 | 44 196 360 634 427 319 163 660 95 186 681 318 565 94 454 1027 294 324 809 908 381 706 473 491 519 510 1216 866 365 55 133 828 423 169 Wait 1172 | . 13 28 61 1 12 1 58 . . 4 12 65 11 10 55 4 2 4 57 14 175 5 3 19 18 151 150 10 6 3 129 62 29 Move 12658 | 36 165 282 521 424 294 147 477 85 142 595 281 407 83 402 904 269 293 803 626 327 510 402 452 446 415 918 538 300 45 107 607 270 85 Hop . | . . . . . . . . . . . . . . . . . . . . . . . . . . . . . . . . . . Pick Up 30 | . . 1 2 . . 1 1 . . 3 . 3 . 1 2 . . . . . 1 3 1 2 . . . 5 . 1 1 2 . Fast Attach 99 | 4 5 3 2 1 1 2 5 5 4 13 . 3 . . 11 . 2 . 8 . 3 1 4 3 2 3 . 3 . . 9 2 . Attach 10 | . . . . . . . 1 . . 3 . 1 . 2 . . . . . . . 2 . . . . . . . . . 1 . Detach 40 | . 1 . . . . . . . . 2 . . . . 3 . . . 1 . 1 2 6 . 4 5 . . . . 15 . . Swap 111 | . . . . . . . 8 . . 4 . 3 . 2 8 . 2 1 5 2 2 5 5 2 4 17 10 7 1 3 11 4 5 Drop 113 | 1 2 2 3 1 . 1 6 5 4 16 . 5 . 1 9 . 2 1 9 . 5 3 6 6 1 3 . 7 . 1 9 3 1 Fire 598 | 3 5 25 21 . 5 6 62 . 23 7 11 29 . 17 21 5 8 . 89 11 2 15 11 8 24 41 29 8 3 11 20 49 29 Melee 113 | . . . . . . . 11 . . 12 . 9 . 2 11 . 1 . 9 4 7 1 3 . . 22 . 2 . 3 12 . 4 Ram 1 | . . . . . . . . . . . . . . . . . . . . . . . . . . 1 . . . . . . . Kick . | . . . . . . . . . . . . . . . . . . . . . . . . . . . . . . . . . . Crush 2 | . . . . . . . . . . . . . . . . . . . . . . . . . . 1 1 . . . . . . Escape Stasis 12 | . . . . . . . . . . 8 . . . . . . . . . . . . . . . . 4 . . . . . . Rewire 129 | . . . . . . . . . . . . 4 . . . . . . 2 . . . . 33 . . 90 . . . . . . Trap . | . . . . . . . . . . . . . . . . . . . . . . . . . . . . . . . . . . Miscellaneous 605 | . 5 19 24 . 7 5 31 . 13 14 14 36 . 17 3 16 14 . 102 23 . 34 . . 42 54 44 23 . 4 15 30 16 Route ------- -11/Scrapyard -10/Materials (discovered 2 exits: *Mat / [*Min]) -9/Materials (discovered 3 exits: *Mat / *Min x2) -9/Mines (discovered 3 exits: *Mat x2 / *Exi) -9/Exiles -8/Mines (discovered 2 exits: *Mat x2) -8/Materials (discovered 2 exits: *Sto x2) -8/Storage -7/Factory -7/Waste -7/Factory (discovered 2 exits: *Low x2) -7/Lower Caves -7/Lower Caves (discovered 2 exits: *Fac / *Dat) -7/Data Miner -6/Proximity Caves -6/Factory (discovered 4 exits: *Fac x2 / *Low x2) -6/Lower Caves -6/Lower Caves (discovered 2 exits: *Fac / *Zio) -6/Zion (discovered 2 exits: [*Dee] / [*Pro]) -6/Deep Caves -5/Proximity Caves -5/Factory (discovered 4 exits: Fac x2 / *Upp x2) -5/Upper Caves -5/Upper Caves (discovered 2 exits: *Fac / *War) -5/Warlord -4/Proximity Caves -4/Factory (discovered 6 exits: *Res / *Upp x2 / *Ext x2 / Arm) -4/Extension (discovered 3 exits: *Res x2 / *Cet) -4/Cetus (discovered 2 exits: *Res / [*Arc]) -4/Archives (discovered 2 exits: *Res / *Hub) -4/Hub_04(d) (discovered 2 exits: *Res x2) -3/Research (discovered 3 exits: *Res / Qua x2) -2/Research -2/Testing History --------- Turn | Location | Event 1 | -11/Scrapyard | Discovered new exit (range 1) 4 | -11/Scrapyard | Upgraded with Propulsion slot (x1) 4 | -11/Scrapyard | Upgraded with Utility slot (x1) 4 | -11/Scrapyard | Upgraded with Weapon slot (x1) 47 | -11/Scrapyard | Entered Materials 58 | -10/Materials | Discovered new exit (range 16) 134 | -10/Materials | Upgraded with Weapon slot (x1) 237 | -10/Materials | Discovered new exit (range 12) 251 | -10/Materials | Entered another Materials area 253 | -9/Materials | Reached level 2 282 | -9/Materials | Upgraded with Weapon slot (x1) 433 | -9/Materials | Reached level 3 553 | -9/Materials | Discovered new exit (range 7) 646 | -9/Materials | Discovered new exit (range 7) 657 | -9/Materials | Identified exit to Mines 695 | -9/Materials | Entered Mines 703 | -9/Mines | Met a Derelict shopkeep closing up shop 741 | -9/Mines | Met a Derelict bent on vengeance 786 | -9/Mines | Build established: Gunner 851 | -9/Mines | Learned Materials garrison access intel 968 | -9/Mines | Reached level 4 974 | -9/Mines | Upgraded with Utility slot (x1) 1012 | -9/Mines | Learned location of Storage (-8) 1016 | -9/Mines | Discovered new exit (range 6) 1095 | -9/Mines | Discovered new exit (range 5) 1423 | -9/Mines | Deemed a non-threat by the Exiles lab entrance 1423 | -9/Mines | Discovered new exit (range 5) 1427 | -9/Mines | Entered Exiles 1455 | -9/Exiles | Met 8R-AWN 1475 | -9/Exiles | Met EX-HEX 1533 | -9/Exiles | Build established: Scavenger-Skirmisher 1535 | -9/Exiles | Met EX-DEC 1568 | -9/Exiles | Visited The Gauntlet 1687 | -9/Exiles | Learned location of Zion (-6) 1713 | -9/Exiles | Met EX-BIN 1733 | -9/Exiles | Aligned with FarCom system 1734 | -9/Exiles | Given EX-Vault access code 1779 | -9/Exiles | Opened EX-Vault 1788 | -9/Exiles | Found Latent Energy Streamer 1812 | -9/Exiles | Warned to stay clear of 0b10 Research branches 1826 | -9/Exiles | Exiles lab attacked by MAIN.C 1880 | -9/Exiles | Discovered new exit (range 15) 1897 | -9/Exiles | Left Exiles lab with Latent Energy Streamer 1897 | -9/Exiles | Entered Mines 1899 | -8/Mines | Reached level 5 1905 | -8/Mines | Discovered new exit (range 13) 1962 | -8/Mines | Upgraded with Weapon slot (x1) 2161 | -8/Mines | Discovered new exit (range 12) 2284 | -8/Mines | Entered Materials 2285 | -8/Materials | Loaded intel: 1 garrison access location 2286 | -8/Materials | Reached level 6 2299 | -8/Materials | Upgraded with Utility slot (x1) 2302 | -8/Materials | Identified exit to Storage 2492 | -8/Materials | Entered Storage 2494 | -8/Storage | Reached level 7 2566 | -8/Storage | Garrison activated, responded to threat 2577 | -8/Storage | Reached level 8 2611 | -8/Storage | System corruption reached 10% 2625 | -8/Storage | Destroyed 8 combat bots 2673 | -8/Storage | Reached level 9 2713 | -8/Storage | Destroyed 7 combat bots 2834 | -8/Storage | Reached level 10 2972 | -8/Storage | Learned location of Armory (-4) 3077 | -8/Storage | System corruption reached 30% 3112 | -8/Storage | Reached level 11 3238 | -8/Storage | Met a pair of Derelict thieves 3287 | -8/Storage | Reached level 12 3292 | -8/Storage | First assault squad dispatched 3309 | -8/Storage | Core integrity fell below 50% 3371 | -8/Storage | Discovered new exit (range 9) 3372 | -8/Storage | Destroyed 18 combat bots 3383 | -8/Storage | Entered Factory 3384 | -7/Factory | Core integrity fell below 50% 3385 | -7/Factory | Reached level 13 3494 | -7/Factory | Sucked down chute 3494 | -7/Factory | Entered Waste 3494 | -7/Waste | The area was eerily silent 3533 | -7/Waste | Upgraded with Utility slot (x1) 3569 | -7/Waste | Found Damper Plating 3570 | -7/Waste | Upgraded with Utility slot (x1) 3692 | -7/Waste | Discovered new exit (range 15) 3716 | -7/Waste | Found Damper Plating 3721 | -7/Waste | Entered Factory 3869 | -7/Factory | Reached level 14 3915 | -7/Factory | Destroyed 7 combat bots 3923 | -7/Factory | Upgraded with Utility slot (x1) 3925 | -7/Factory | Upgraded with Power slot (x1) 4045 | -7/Factory | Build established: Hacker-Assassin 4281 | -7/Factory | Upgraded with Propulsion slot (x1) 4371 | -7/Factory | Identified exit to Lower Caves 4577 | -7/Factory | Entered Lower Caves 4888 | -7/Lower Caves | Attracted the attention of an 0b10 checkpoint 4917 | -7/Lower Caves | Discovered new exit (range 14) 4979 | -7/Lower Caves | Entered another Lower Caves area 4981 | -7/Lower Caves | Reached level 15 5042 | -7/Lower Caves | Discovered new exit (range 8) 5425 | -7/Lower Caves | Attracted the attention of an 0b10 outpost 5468 | -7/Lower Caves | Destroyed 7 combat bots 5538 | -7/Lower Caves | Attracted the attention of an 0b10 checkpoint 5569 | -7/Lower Caves | Reached level 16 5598 | -7/Lower Caves | Discovered new exit (range 23) 5715 | -7/Lower Caves | Build established: Hacker-Tank 5716 | -7/Lower Caves | Entered Data Miner 5716 | -7/Data Miner | Accompanied by 1 ally 5716 | -7/Data Miner | Discovered new exit (range 6) 5737 | -7/Data Miner | Met Data Miner 5761 | -7/Data Miner | Learned location of Section 7 (-3) 5761 | -7/Data Miner | Acquired the access code to Warlord's prototype stash 5782 | -7/Data Miner | Received God Mode back door access code from Data Miner 5827 | -7/Data Miner | Entered Proximity Caves 5827 | -6/Proximity Caves | Accompanied by 1 ally 5827 | -6/Proximity Caves | Upgraded with Utility slot (x1) 5829 | -6/Proximity Caves | Attracted the attention of an 0b10 checkpoint 5840 | -6/Proximity Caves | Reached level 17 6017 | -6/Proximity Caves | Spotted B-75 Beast 6019 | -6/Proximity Caves | Escorted by Enhanced Grunt 6208 | -6/Proximity Caves | Build established: Hacker-Assassin 6363 | -6/Proximity Caves | Discovered new exit (range 14) 6409 | -6/Proximity Caves | Entered Factory 6409 | -6/Factory | Accompanied by 1 ally 6411 | -6/Factory | Reached level 18 6479 | -6/Factory | Upgraded with Utility slot (x1) 6538 | -6/Factory | Discovered new exit (range 6) 6715 | -6/Factory | Build established: Hacker-Tank 6765 | -6/Factory | Fabricated Plasma Sword? 6857 | -6/Factory | Discovered new exit (range 20) 6920 | -6/Factory | Reached level 19 7011 | -6/Factory | Identified exit to Lower Caves 7261 | -6/Factory | Discovered new exit (range 18) 7369 | -6/Factory | Build established: Hacker-Assassin 7689 | -6/Factory | Entered Lower Caves 7689 | -6/Lower Caves | Accompanied by 1 ally 7820 | -6/Lower Caves | Learned Factory garrison access intel 7941 | -6/Lower Caves | Build established: Hacker-Tank 7973 | -6/Lower Caves | Discovered new exit (range 11) 8051 | -6/Lower Caves | Entered another Lower Caves area 8051 | -6/Lower Caves | Accompanied by 1 ally 8079 | -6/Lower Caves | Discovered new exit (range 6) 8149 | -6/Lower Caves | Encountered a Warlord checkpoint 8449 | -6/Lower Caves | Discovered new exit (range 7) 8459 | -6/Lower Caves | Entered Zion 8459 | -6/Zion | Accompanied by 1 ally 8461 | -6/Zion | Reached level 20 8530 | -6/Zion | Discovered new exit (range 21) 8664 | -6/Zion | Learned 4 Factory zone layouts 9035 | -6/Zion | Rebuked by Imprinter 9107 | -6/Zion | Acquired unknown access codes intercepted by a Zionite 9181 | -6/Zion | Given A8's code to call for help 9402 | -6/Zion | Opened final containment barrier to the Deep Caves 9422 | -6/Zion | Discovered new exit (range 3) 9422 | -6/Zion | Saw the warning signs outside the Deep Caves entrance 9429 | -6/Zion | Entered Deep Caves 9429 | -6/Deep Caves | Accompanied by 1 ally 9646 | -6/Deep Caves | Z-Facility disabled 9656 | -6/Deep Caves | Attacked by Z-Imprinter 9682 | -6/Deep Caves | Core integrity fell below 50% 9698 | -6/Deep Caves | Destroyed Z-Imprinter 9747 | -6/Deep Caves | Found Prototype Protection 9747 | -6/Deep Caves | Identified Zio. Weapon Casing 9761 | -6/Deep Caves | Found Prototype Device 9761 | -6/Deep Caves | Identified Zio. Metafield Generator 9990 | -6/Deep Caves | Discovered new exit (range 7) 10053 | -6/Deep Caves | Spotted as-82300 10059 | -6/Deep Caves | Spotted as-51505 10147 | -6/Deep Caves | Destroyed as-82300 10159 | -6/Deep Caves | Found GOLEM Unit 10236 | -6/Deep Caves | Triggered Deep Caves wall 10336 | -6/Deep Caves | Spotted AS-67953 10351 | -6/Deep Caves | Core integrity fell below 20% 10384 | -6/Deep Caves | Destroyed 37 combat bots 10405 | -6/Deep Caves | Destroyed AS-67953 10416 | -6/Deep Caves | Spotted AS-39391 10448 | -6/Deep Caves | Destroyed AS-39391 10483 | -6/Deep Caves | Triggered Deep Caves wall 10519 | -6/Deep Caves | Destroyed as-51505 10579 | -6/Deep Caves | Exposed GOLEM chamber 10699 | -6/Deep Caves | Entered Proximity Caves 10701 | -5/Proximity Caves | Reached level 21 11088 | -5/Proximity Caves | Spotted B-75 Beast 11150 | -5/Proximity Caves | Discovered new exit (range 13) 11161 | -5/Proximity Caves | Learned Factory non-interactive machine intel 11182 | -5/Proximity Caves | Entered Factory 11183 | -5/Factory | Identified exit to Factory 11184 | -5/Factory | Loaded intel: 179 non-interactive machine locations 11185 | -5/Factory | Loaded intel: 4 garrison access locations 11255 | -5/Factory | Discovered new exit (range 22) 11262 | -5/Factory | Build established: Hacker-Assassin 11715 | -5/Factory | Identified exit to Upper Caves 12016 | -5/Factory | Entered Upper Caves 12018 | -5/Upper Caves | Reached level 22 12287 | -5/Upper Caves | Build established: Hacker-Tank 12448 | -5/Upper Caves | Found Alien Artifact 12448 | -5/Upper Caves | Identified Core Expander 12448 | -5/Upper Caves | Installed Core Expander, added new Utility slot 12519 | -5/Upper Caves | Encountered a Warlord checkpoint 12605 | -5/Upper Caves | Discovered new exit (range 9) 12631 | -5/Upper Caves | Entered another Upper Caves area 12632 | -5/Upper Caves | Identified exit to Warlord 12641 | -5/Upper Caves | Learned Factory security intel 12682 | -5/Upper Caves | Discovered exit to Factory (range 11) 13210 | -5/Upper Caves | Spotted B-75 Beast 13243 | -5/Upper Caves | Entered Warlord 13283 | -5/Warlord | Discovered new exit (range 21) 13338 | -5/Warlord | Build established: Hacker-Skirmisher 13456 | -5/Warlord | Visited the Vortex Lab 13462 | -5/Warlord | Warlord's base attacked by MAIN.C 13584 | -5/Warlord | Met Warlord 13599 | -5/Warlord | Opened Warlord's prototype stash 13614 | -5/Warlord | Found Prototype Device 13614 | -5/Warlord | Identified System Purifier 13617 | -5/Warlord | Found Prototype Processor 13617 | -5/Warlord | Identified Exp. Target Analyzer 13777 | -5/Warlord | Opened side exit 13812 | -5/Warlord | Warlord forces counterattacked 13863 | -5/Warlord | Spotted Executioner 13863 | -5/Warlord | Spotted Executioner 13863 | -5/Warlord | Spotted Executioner 13869 | -5/Warlord | Reached level 23 13869 | -5/Warlord | Destroyed Executioner 13873 | -5/Warlord | Destroyed Executioner 13882 | -5/Warlord | Core integrity fell below 50% 13883 | -5/Warlord | Allies destroyed Executioner 13884 | -5/Warlord | Entered Proximity Caves 13926 | -4/Proximity Caves | Spotted B-86 Titan 14038 | -4/Proximity Caves | Build established: Hacker-Tank 14049 | -4/Proximity Caves | Attracted the attention of an 0b10 checkpoint 14226 | -4/Proximity Caves | Core integrity fell below 20% 14227 | -4/Proximity Caves | Reached level 24 14248 | -4/Proximity Caves | Destroyed 8 combat bots 14336 | -4/Proximity Caves | Learned location of Quarantine (-3) 14429 | -4/Proximity Caves | Destroyed 7 combat bots 14481 | -4/Proximity Caves | Upgraded with Utility slot (x1) 14518 | -4/Proximity Caves | Discovered exit to Factory (range 9) 14537 | -4/Proximity Caves | Entered Factory 14663 | -4/Factory | Discovered new exit (range 23) 14680 | -4/Factory | Reached level 25 14947 | -4/Factory | Discovered new exit (range 7) 15012 | -4/Factory | Upgraded with Propulsion slot (x1) 15039 | -4/Factory | Build established: Hacker-Assassin 15116 | -4/Factory | Identified exit to Upper Caves 15116 | -4/Factory | Identified exit to Extension 15116 | -4/Factory | Identified exit to Armory 15750 | -4/Factory | Destroyed 7 combat bots 15979 | -4/Factory | Discovered new exit (range 6) 16037 | -4/Factory | First assault squad dispatched 16083 | -4/Factory | Entered Extension 16381 | -4/Extension | Rescued a captive Derelict 16382 | -4/Extension | Rescued a captive Derelict 16388 | -4/Extension | Rescued a captive Derelict 16392 | -4/Extension | Rescued a captive Derelict 16450 | -4/Extension | Rescued A7 16497 | -4/Extension | Reached level 26 16537 | -4/Extension | Spotted B-86 Titan 16544 | -4/Extension | Spotted B-86 Titan 16558 | -4/Extension | Allies destroyed B-86 Titan 16574 | -4/Extension | Allies destroyed B-86 Titan 16627 | -4/Extension | Central database locked down 16627 | -4/Extension | Discovered new exit (range 3) 16740 | -4/Extension | Rescued a captive Derelict 16775 | -4/Extension | Rescued a captive Derelict 16778 | -4/Extension | Rescued a captive Derelict 16869 | -4/Extension | Build established: Hacker-Mutant 17124 | -4/Extension | Reached level 27 17158 | -4/Extension | Rescued a captive Derelict 17161 | -4/Extension | Rescued a captive Derelict 17186 | -4/Extension | Rescued a captive Derelict 17187 | -4/Extension | Rescued a captive Derelict 17229 | -4/Extension | Discovered new exit (range 10) 17231 | -4/Extension | Discovered new exit (range 6) 17258 | -4/Extension | Build established: Commander-Skirmisher 17294 | -4/Extension | Entered Cetus 17294 | -4/Cetus | Accompanied by 18 allies 17299 | -4/Cetus | Acquired a Cetus Manufacturing Module code from A7 17312 | -4/Cetus | Spotted Cetus Guard 17314 | -4/Cetus | Spotted Cetus Guard 17314 | -4/Cetus | Spotted Cetus Guard 17319 | -4/Cetus | Spotted Cetus Guard 17326 | -4/Cetus | Allies destroyed Cetus Guard 17330 | -4/Cetus | Allies destroyed Cetus Guard 17332 | -4/Cetus | Allies destroyed Cetus Guard 17336 | -4/Cetus | Allies destroyed Cetus Guard 17418 | -4/Cetus | Upgraded with Utility slot (x1) 17477 | -4/Cetus | Failed to start Cetus Manufacturing Module 17491 | -4/Cetus | Escorted A7 to Cetus Mainframe 17501 | -4/Cetus | Discovered new exit (range 24) 17711 | -4/Cetus | Build established: Commander-Tank 17714 | -4/Cetus | Spotted Cetus Guard 17715 | -4/Cetus | Spotted Cetus Guard 17716 | -4/Cetus | Destroyed Cetus Guard 17716 | -4/Cetus | Destroyed Cetus Guard 17717 | -4/Cetus | Spotted Cetus Guard 17719 | -4/Cetus | Allies destroyed Cetus Guard 17720 | -4/Cetus | Destroyed Cetus Guard 17740 | -4/Cetus | Discovered new exit (range 18) 17756 | -4/Cetus | Met Revision 17 17924 | -4/Cetus | Entered Archives 17924 | -4/Archives | Accompanied by 7 allies 17929 | -4/Archives | Received a hacking code to weaken MAIN.C 17975 | -4/Archives | Discovered new exit (range 15) 17989 | -4/Archives | Discovered new exit (range 14) 18024 | -4/Archives | Entered Hub_04(d) 18024 | -4/Hub_04(d) | Accompanied by 6 allies 18130 | -4/Hub_04(d) | Discovered new exit (range 21) 18172 | -4/Hub_04(d) | Discovered new exit (range 21) 18175 | -4/Hub_04(d) | Reached level 28 18217 | -4/Hub_04(d) | Network Hub disabled 18217 | -4/Hub_04(d) | Spotted Lightning 18217 | -4/Hub_04(d) | Spotted Lightning 18217 | -4/Hub_04(d) | Spotted Lightning 18217 | -4/Hub_04(d) | Spotted Lightning 18220 | -4/Hub_04(d) | Spotted Lightning 18222 | -4/Hub_04(d) | Spotted Lightning 18222 | -4/Hub_04(d) | Spotted Lightning 18223 | -4/Hub_04(d) | Spotted Lightning 18225 | -4/Hub_04(d) | Spotted Lightning 18225 | -4/Hub_04(d) | Spotted Lightning 18225 | -4/Hub_04(d) | Spotted Lightning 18249 | -4/Hub_04(d) | Entered Research 18376 | -3/Research | Identified exit to Quarantine 18665 | -3/Research | Found Antimissile System 19130 | -3/Research | Discovered new exit (range 18) 19152 | -3/Research | Found Prototype Processor 19152 | -3/Research | Identified Exp. Melee Analysis Suite 19268 | -3/Research | Entered another Research area 19268 | -2/Research | Warlord forces began assault on 0b10 19270 | -2/Research | Reached level 29 19270 | -2/Research | Reached level 30 19362 | -2/Research | Borebot progress halted 19378 | -2/Research | Research machine network offline 19457 | -2/Research | Upgraded with Utility slot (x1) 19545 | -2/Research | Spotted Striker 19546 | -2/Research | Spotted Striker 19558 | -2/Research | Destroyed Striker 19565 | -2/Research | Destroyed Striker 19576 | -2/Research | Discovered new exit (range 23) 19586 | -2/Research | Spotted Striker 19594 | -2/Research | Destroyed Striker 19634 | -2/Research | Spotted Executioner 19638 | -2/Research | Spotted Striker 19648 | -2/Research | Borebot progress halted 19652 | -2/Research | Core integrity fell below 50% 19652 | -2/Research | Reached level 31 19652 | -2/Research | Destroyed Striker 19658 | -2/Research | Destroyed Executioner 19686 | -2/Research | Destroyed 13 combat bots 19715 | -2/Research | Borebot progress halted 19773 | -2/Research | Spotted Striker 19783 | -2/Research | Destroyed Striker 19805 | -2/Research | Spotted Striker 19805 | -2/Research | Spotted Executioner 19857 | -2/Research | Spotted Striker 19859 | -2/Research | Spotted Striker 19869 | -2/Research | Spotted Executioner 19869 | -2/Research | Spotted Executioner 19869 | -2/Research | Entered Testing 19870 | -2/Testing | Maximum security lockdown engaged 19938 | -2/Testing | Reached level 32 20071 | -2/Testing | Core integrity fell below 20% 20074 | -2/Testing | Spotted Executioner 20080 | -2/Testing | Destroyed Executioner 20129 | -2/Testing | Destroyed by B-74 Champion with Powered Hammer Last Messages --------------- 20123_ Slug penetrates C-30 ARC. 20124_ Acquired 13 matter. 20124_ C-30 ARC bursts open, deploying its payload. 20124_ G-73 Enforcer unfolds itself. 20124_ B-74 Champion unfolds itself. 20124_ G-73 Enforcer unfolds itself. 20125_ C-30 ARC bursts open, deploying its payload. 20125_ Executioner unfolds itself. 20125_ H-88 Terminator unfolds itself. 20125_ M-36 Artificer unfolds itself. 20127_ HV Slug penetrates G-73 Enforcer. 20127_ G-73 Enforcer suffers critical hit. 20127_ G-73 Enforcer destroyed. 20127_ HV Slug penetrates B-74 Champion. 20127_ B-74 Champion suffers critical hit. 20127_ HV Slug penetrates G-73 Enforcer. 20127_ Executioner suffers critical hit. 20127_ Destroyed Prototype Ballistic Gun. 20127_ Slug penetrates B-74 Champion. 20128_ Acquired 13 matter. Map ----- +----------------------------------------------------+ | # ? ? ? ? ???? ?????????????????? | | # ? ? ? ?? ???? ?????????????? | | # ########## ? #?#+##?##???????##????????????? | | # ## # # ? ?#???#???????????????? | | # ## # # ?""" #??##?##????????????? | | ## # # """? ?# ??##?#?#??????????? | | ## "?" + # "?"" ??#?#####??#?##?????? | | ## """ # + """" # ##??##?####?#?#???? | | ## """ ]# # ?? # ####??###????##???? | | #+##### """ # # """ """ #?# ?????????????? | | # """ # ? #??""?""" ??# ""?? ?? ?? ????? | | """# """ # ####?#??#?#?# "??" #? ????? | | * """# """ =# ?? + ""????#? ??????#? | | """# # ???####?####? # ?""" ##? ????#??? | | " # ###########C#? ? ?? ?????#??? | | #####"### ? ##########?g##?#####????#?#? ?? | | "" ######"###+#########?##?C?#?### ?? ? ???#? | | "" #?# g ###?#?? ?? g ?? ? ?? | | " [ # # g g ##?#?#g ? ?? ?? ? ???? ? | | ######### """""""" ######/####?# ?? ?? ? ?? | | ######### " " #### ##? ????? ??#? | | #######?# ####C"""" #??? ? ?? #??? | | ######### """ ####C"""" + ??? ? ? ? | | ######?## """"" "! * ####h""""=#???#######????# | | ######### """"" """!=*##g#e""""=#??######??#?#?? | | ###??###; [%!==/@bEgh%m!%######?######??# | | ######### [=[%###########?#???##????#??# | | ?#??######################?#?###????##?###??##???? | | | | | | | | | | | | | | | | | | | | | | | | | | | | | | | | | | | | | | | | | | | | | +----------------------------------------------------+ Best States ------------- Heat Dissipation 112 Energy Generation 55 Energy Capacity 1510 Matter Stores 400 Matter Capacity 400 Sight Range 18 Terrain Scan Range 24 Terrain Scan Density 210 Additional Mass Support 10 Armor Coverage 2850 Resistance: KI 30 Resistance: TH 30 Resistance: EX 15 Resistance: EM 90 Resistance: I 15 Resistance: S 15 Resistance: P 15 Core Shielding 20 Point Defense Rating 240 Phase Shifting 8 Evasion (%) 48 Targeting Accuracy 8 Target Analysis 12 Core Analysis 8 Armor Integrity Analysis 66 Recoil Reduction 2 Energy Filtering 30 Offensive Hacking 20 Defensive Hacking 10 Item Schematics ----------------- Adv. Focal Shield | -7/Factory | Scanalyzed Combat Drone Bay | -7/Data Miner | Free Lgt. Regenerative Plating | -7/Data Miner | Free Exp. Flexi-carbon Leg | -7/Data Miner | Free Cmb. Gravmag System | -7/Data Miner | Free Exp. Targeting Computer | -7/Data Miner | Free Plasma Sword | -7/Data Miner | Free Robot Schematics ------------------ S-27 Virus | -7/Data Miner | Free G-50 Soldier | -7/Data Miner | Free G-67 Veteran | -7/Data Miner | Free L-41 Fighter | -7/Data Miner | Free X-72 Disruptor | -7/Data Miner | Free H-66 Slayer | -7/Data Miner | Free I-36 Angel | -7/Data Miner | Free Fabricated ------------ Plasma Sword | x1 | -6/Factory Alien Tech Used ----------------- Core Expander Achievements -------------- Boltbath Maximum Efficiency That's One Door That Should Stay Closed Challenges ------------ None RPGLIKE | -11 -10 -9 -9 -9 -8 -8 -8 -7 -7 -7 -7 -7 -7 -6 -6 -6 -6 -6 -6 -5 -5 -5 -5 -5 -4 -4 -4 -4 -4 -4 -3 -2 -2 --------- Run | Scr Mat Mat Min Exi Min Mat Sto Fac Was Fac Low Low Dat Pro Fac Low Low Zio Dee Pro Fac Upp Upp War Pro Fac Ext Cet Arc Hub Res Res Tes Levels Raised 31 | . . 2 1 . 1 1 6 1 . 1 . 2 . 1 2 . . 1 . 1 . 1 . 1 1 1 2 . . 1 . 3 1 XP Earned 50282 | 3000 300 2975 1950 350 1200 1720 9088 1500 200 712 867 1679 220 2709 1994 365 587 204 647 1187 806 640 402 899 1859 1844 2241 893 218 427 1292 3585 1722 XP Spent 45325 | 1500 1500 2320 1200 . 1520 1930 2520 2700 3400 3300 . . . 2300 3775 . . . 2700 . 425 1225 . 1750 2900 1100 560 3200 . . . 3500 . Upgrades 74 | 3 11 6 3 . 3 5 6 6 4 3 . . . 1 4 . . . 3 . 2 4 . 2 1 1 4 1 . . . 1 . Power Slot 1 | . . . . . . . . . . 1 . . . . . . . . . . . . . . . . . . . . . . . Propulsion Slot 3 | 1 . . . . . . . . . 1 . . . . . . . . . . . . . . . 1 . . . . . . . Utility Slot 11 | 1 . . 1 . . 1 . . 2 1 . . . 1 1 . . . . . . . . . 1 . . 1 . . . 1 . Weapon Slot 4 | 1 1 1 . . 1 . . . . . . . . . . . . . . . . . . . . . . . . . . . . Core Integrity 14 | . 10 . . . . . . . . . . . . . . . . . . . . . . . . . 4 . . . . . . Heat Dissipation 7 | . . 2 . . . 3 2 . . . . . . . . . . . . . . . . . . . . . . . . . . Energy Generation 2 | . . 2 . . . . . . . . . . . . . . . . . . . . . . . . . . . . . . . Energy Storage 4 | . . . . . . . . . . . . . . . . . . . . . 2 2 . . . . . . . . . . . Matter Storage 2 | . . . . . . . . . . . . . . . 2 . . . . . . . . . . . . . . . . . . Mass Support 5 | . . . . . . . . . 2 . . . . . . . . . . . . 2 . 1 . . . . . . . . . Inventory Capacity 5 | . . 1 . . . 1 . . . . . . . . 1 . . . 1 . . . . 1 . . . . . . . . . Sight Range 2 | . . . 2 . . . . . . . . . . . . . . . . . . . . . . . . . . . . . . Terrain Scan Density 2 | . . . . . 2 . . . . . . . . . . . . . . . . . . . . . . . . . . . . Ranged Accuracy 6 | . . . . . . . 4 . . . . . . . . . . . 2 . . . . . . . . . . . . . . Hack Attack % 4 | . . . . . . . . 4 . . . . . . . . . . . . . . . . . . . . . . . . . Hack Defense % 2 | . . . . . . . . 2 . . . . . . . . . . . . . . . . . . . . . . . . . Protomatter Created 6683 | . 33 175 256 . 111 48 726 . 96 108 105 191 . 303 38 . 97 . 776 164 . 241 . . 385 495 462 405 . 25 385 902 156 Integrity Restored 12118 | . 86 380 368 . 121 78 571 . 297 303 309 767 . 278 52 334 217 . 2150 479 . 707 . . 939 1166 885 383 . 72 176 634 366 Core 9412 | . 60 337 250 . 99 60 478 . 297 303 155 457 . 211 40 270 137 . 2070 268 . 318 . . 939 869 463 163 . 60 124 618 366 Parts 2706 | . 26 43 118 . 22 18 93 . . . 154 310 . 67 12 64 80 . 80 211 . 389 . . . 297 422 220 . 12 52 16 . Protomatter Decayed 7746 | . 3 15 150 7 68 11 495 . 193 . . 164 . 292 62 . 26 . 59 . . . . 1116 72 86 809 987 . 74 318 2304 435 Game ------ Seed SystemBoreEdition Manual? 0 Play Time 06:29:12 Cumulative 599.5 hours Start 2019.12.22 @ 10:56:27 End 2019.12.25 @ 07:44:54 Sessions 17 Manual Loads 0 Difficulty Rogue Special Mode Winter2019/RPGLIKE Game No. 182 Rogue 182 Adventurer 0 Explorer 0 Win Type - Total 23 Types 17/1/2/3/0/0/0 Lore% 62 Gallery% 82 Achievement% 65 Wizard Run 0 Options --------- ASCII 0 Keyboard 1 Movement Numpad Keybinds 0 Fullscreen 1 Font 24/Smallcaps Map View 76x50 Tactical HUD 1 Map Filters NONE Filters NONE Steam 1 RUN: 2afb0928-1a5d-4e6c-86b9-35940e75c679